[Event "Titled Tuesday Blitz January 31 Late 2023"]
[White "Bayo Milagro, Alvaro"]
[Black "Salimova, Nurgyul"]
[WhiteFideId "22275240"]
[BlackFideId "2915138"]
[WhiteElo "2287"]
[BlackElo "2391"]
[Result "1/2-1/2"]
[Round "05"]
[TimeControl "180+2"]
[Date "2023.01.31"]
[WhiteClock "0:00:37"]
[BlackClock "0:00:03"]

1. d4 {[%clk 0:03:00]}  Nf6 {[%clk 0:02:58]} 2. Nf3 {[%clk 0:03:00]}  d5 {[%clk 0:02:57]} 3. c4 {[%clk 0:03:00]}  e6 {[%clk 0:02:55]} 4. g3 {[%clk 0:03:00]}  Be7 {[%clk 0:02:52]} 5. Bg2 {[%clk 0:03:01]}  O-O {[%clk 0:02:52]} 6. O-O {[%clk 0:03:01]}  dxc4 {[%clk 0:02:49]} 7. Na3 {[%clk 0:03:00]}  Bxa3 {[%clk 0:02:44]} 8. bxa3 {[%clk 0:03:00]}  Bd7 {[%clk 0:02:43]} 9. Ne5 {[%clk 0:02:55]}  Bc6 {[%clk 0:02:41]} 10. Nxc6 {[%clk 0:02:55]}  Nxc6 {[%clk 0:02:41]} 11. Bxc6 {[%clk 0:02:52]}  bxc6 {[%clk 0:02:42]} 12. Bg5 {[%clk 0:02:52]}  Qd5 {[%clk 0:02:32]} 13. Bxf6 {[%clk 0:02:52]}  gxf6 {[%clk 0:02:33]} 14. Rc1 {[%clk 0:02:49]}  Rfd8 {[%clk 0:02:18]} 15. e3 {[%clk 0:02:48]}  c5 {[%clk 0:02:07]} 16. Qg4+ {[%clk 0:02:47]}  Qg5 {[%clk 0:02:07]} 17. Qxg5+ {[%clk 0:02:40]}  fxg5 {[%clk 0:02:08]} 18. Rxc4 {[%clk 0:02:26]}  cxd4 {[%clk 0:02:07]} 19. Rxc7 {[%clk 0:02:26]}  d3 {[%clk 0:01:55]} 20. Rd1 {[%clk 0:02:26]}  Rab8 {[%clk 0:01:47]} 21. Rc3 {[%clk 0:02:23]}  Rb2 {[%clk 0:01:45]} 22. Rcxd3 {[%clk 0:02:18]}  Rxd3 {[%clk 0:01:46]} 23. Rxd3 {[%clk 0:02:19]}  Rxa2 {[%clk 0:01:47]} 24. g4 {[%clk 0:02:17]}  a5 {[%clk 0:01:44]} 25. Kg2 {[%clk 0:02:14]}  Kg7 {[%clk 0:01:42]} 26. Rc3 {[%clk 0:02:10]}  h6 {[%clk 0:01:38]} 27. Kg3 {[%clk 0:02:09]}  Kf6 {[%clk 0:01:33]} 28. f3 {[%clk 0:02:05]}  a4 {[%clk 0:01:31]} 29. h4 {[%clk 0:02:04]}  Kg6 {[%clk 0:01:27]} 30. h5+ {[%clk 0:02:03]}  Kf6 {[%clk 0:01:26]} 31. f4 {[%clk 0:02:01]}  Rb2 {[%clk 0:00:59]} 32. fxg5+ {[%clk 0:01:44]}  Kxg5 {[%clk 0:00:59]} 33. Rc5+ {[%clk 0:01:44]}  f5 {[%clk 0:00:57]} 34. gxf5 {[%clk 0:01:44]}  exf5 {[%clk 0:00:58]} 35. e4 {[%clk 0:01:39]}  Rb3+ {[%clk 0:00:57]} 36. Kg2 {[%clk 0:01:37]}  Kxh5 {[%clk 0:00:45]} 37. Rxf5+ {[%clk 0:01:36]}  Kg4 {[%clk 0:00:45]} 38. Rf6 {[%clk 0:01:30]}  h5 {[%clk 0:00:43]} 39. Ra6 {[%clk 0:01:12]}  Rxa3 {[%clk 0:00:42]} 40. e5 {[%clk 0:01:13]}  Ra2+ {[%clk 0:00:42]} 41. Kf1 {[%clk 0:01:11]}  Kf5 {[%clk 0:00:27]} 42. e6 {[%clk 0:01:02]}  Kf6 {[%clk 0:00:27]} 43. Ke1 {[%clk 0:00:55]}  a3 {[%clk 0:00:24]} 44. Kf1 {[%clk 0:00:50]}  h4 {[%clk 0:00:22]} 45. Kg1 {[%clk 0:00:50]}  h3 {[%clk 0:00:22]} 46. Kh1 {[%clk 0:00:50]}  Ke7 {[%clk 0:00:17]} 47. Kg1 {[%clk 0:00:50]}  Rg2+ {[%clk 0:00:12]} 48. Kh1 {[%clk 0:00:46]}  a2 {[%clk 0:00:09]} 49. Ra7+ {[%clk 0:00:44]}  Kxe6 {[%clk 0:00:06]} 50. Re7+ {[%clk 0:00:44]}  Kf6 {[%clk 0:00:04]} 51. Re6+ {[%clk 0:00:42]}  Kg5 {[%clk 0:00:04]} 52. Re5+ {[%clk 0:00:39]}  Kh4 {[%clk 0:00:04]} 53. Rh5+ {[%clk 0:00:39]}  Kg3 {[%clk 0:00:04]} 54. Rxh3+ {[%clk 0:00:38]}  Kf2 {[%clk 0:00:03]} 55. Rf3+ {[%clk 0:00:37]}  Kxf3 {[%clk 0:00:03]} 1/2-1/2


[Site "https://www.chess.com"]

[Event "Titled Tuesday Blitz January 31 Late 2023"]
[White "Ozates, Tuna"]
[Black "Karolczuk, Iwo"]
[WhiteFideId "6354521"]
[BlackFideId "21816972"]
[WhiteElo "2251"]
[BlackElo "2343"]
[Result "0-1"]
[Round "05"]
[TimeControl "180+2"]
[Date "2023.01.31"]
[WhiteClock "0:00:31"]
[BlackClock "0:00:59"]

1. e4 {[%clk 0:02:57]}  c5 {[%clk 0:02:59]} 2. Nf3 {[%clk 0:02:57]}  d6 {[%clk 0:02:58]} 3. Bb5+ {[%clk 0:02:56]}  Nd7 {[%clk 0:02:58]} 4. Ba4 {[%clk 0:02:55]}  Nf6 {[%clk 0:02:55]} 5. O-O {[%clk 0:02:54]}  a6 {[%clk 0:02:55]} 6. c4 {[%clk 0:02:54]}  g6 {[%clk 0:02:56]} 7. Nc3 {[%clk 0:02:54]}  Bg7 {[%clk 0:02:56]} 8. d4 {[%clk 0:02:49]}  cxd4 {[%clk 0:02:55]} 9. Nxd4 {[%clk 0:02:50]}  O-O {[%clk 0:02:55]} 10. Re1 {[%clk 0:02:50]}  Ne5 {[%clk 0:02:45]} 11. Bb3 {[%clk 0:02:49]}  Nfd7 {[%clk 0:02:45]} 12. f4 {[%clk 0:02:45]}  Nc6 {[%clk 0:02:45]} 13. Be3 {[%clk 0:02:45]}  Nc5 {[%clk 0:02:45]} 14. Nxc6 {[%clk 0:02:43]}  bxc6 {[%clk 0:02:43]} 15. Bxc5 {[%clk 0:02:43]}  dxc5 {[%clk 0:02:44]} 16. e5 {[%clk 0:02:43]}  Qc7 {[%clk 0:02:31]} 17. Ne4 {[%clk 0:02:27]}  Rd8 {[%clk 0:02:23]} 18. Qe2 {[%clk 0:02:24]}  Bf5 {[%clk 0:02:15]} 19. Nxc5 {[%clk 0:02:21]}  f6 {[%clk 0:01:44]} 20. e6 {[%clk 0:02:10]}  Qxf4 {[%clk 0:01:33]} 21. Rad1 {[%clk 0:02:10]}  Bh6 {[%clk 0:01:31]} 22. Nd7 {[%clk 0:01:54]}  Bg4 {[%clk 0:01:29]} 23. Nxf6+ {[%clk 0:01:43]}  exf6 {[%clk 0:01:17]} 24. e7 {[%clk 0:00:38]}  Re8 {[%clk 0:01:04]} 25. c5+ {[%clk 0:00:31]}  Kg7 {[%clk 0:00:59]} 0-1


[Site "https://www.chess.com"]

[Event "Titled Tuesday Blitz January 31 Late 2023"]
[White "Ronka, Erik"]
[Black "Quispe Arteaga, Gabriel"]
[WhiteFideId "505080"]
[BlackFideId "32059809"]
[WhiteElo "2276"]
[BlackElo "2381"]
[Result "1/2-1/2"]
[Round "05"]
[TimeControl "180+2"]
[Date "2023.01.31"]
[WhiteClock "0:00:19"]
[BlackClock "0:00:52"]

1. e4 {[%clk 0:03:00]}  c5 {[%clk 0:02:59]} 2. Nf3 {[%clk 0:03:00]}  e6 {[%clk 0:02:59]} 3. g3 {[%clk 0:03:00]}  d5 {[%clk 0:02:57]} 4. exd5 {[%clk 0:03:01]}  exd5 {[%clk 0:02:58]} 5. d4 {[%clk 0:03:01]}  Nf6 {[%clk 0:02:58]} 6. Bg2 {[%clk 0:03:02]}  Nc6 {[%clk 0:02:59]} 7. O-O {[%clk 0:03:02]}  Be7 {[%clk 0:02:59]} 8. Nc3 {[%clk 0:02:58]}  O-O {[%clk 0:02:59]} 9. dxc5 {[%clk 0:02:55]}  Bxc5 {[%clk 0:02:57]} 10. a3 {[%clk 0:02:53]}  Be6 {[%clk 0:02:56]} 11. b4 {[%clk 0:02:52]}  Be7 {[%clk 0:02:46]} 12. Bb2 {[%clk 0:02:46]}  Rc8 {[%clk 0:02:44]} 13. Qd3 {[%clk 0:02:22]}  Qd7 {[%clk 0:01:52]} 14. Rad1 {[%clk 0:01:43]}  Rfd8 {[%clk 0:01:52]} 15. Rfe1 {[%clk 0:01:16]}  Bf5 {[%clk 0:01:15]} 16. Qd2 {[%clk 0:01:04]}  d4 {[%clk 0:00:24]} 17. Ne2 {[%clk 0:00:55]}  Ne4 {[%clk 0:00:25]} 18. Qc1 {[%clk 0:00:49]}  d3 {[%clk 0:00:20]} 19. Rxd3 {[%clk 0:00:45]}  Qc7 {[%clk 0:00:21]} 20. Rxd8+ {[%clk 0:00:45]}  Rxd8 {[%clk 0:00:21]} 21. Nfd4 {[%clk 0:00:41]}  Bg6 {[%clk 0:00:20]} 22. Nxc6 {[%clk 0:00:41]}  bxc6 {[%clk 0:00:20]} 23. Nf4 {[%clk 0:00:40]}  Nf6 {[%clk 0:00:18]} 24. Nxg6 {[%clk 0:00:33]}  hxg6 {[%clk 0:00:19]} 25. c4 {[%clk 0:00:31]}  Bf8 {[%clk 0:00:18]} 26. h3 {[%clk 0:00:28]}  c5 {[%clk 0:00:19]} 27. b5 {[%clk 0:00:22]}  Qa5 {[%clk 0:00:19]} 28. Qc3 {[%clk 0:00:20]}  Qa4 {[%clk 0:00:19]} 29. Kh2 {[%clk 0:00:18]}  Rd4 {[%clk 0:00:16]} 30. Bf1 {[%clk 0:00:17]}  Rd8 {[%clk 0:00:13]} 31. Qf3 {[%clk 0:00:17]}  Qc2 {[%clk 0:00:12]} 32. Bxf6 {[%clk 0:00:16]}  gxf6 {[%clk 0:00:13]} 33. Qxf6 {[%clk 0:00:16]}  Rd2 {[%clk 0:00:13]} 34. Kg1 {[%clk 0:00:16]}  Bg7 {[%clk 0:00:12]} 35. Qf3 {[%clk 0:00:15]}  Bd4 {[%clk 0:00:11]} 36. Re2 {[%clk 0:00:15]}  Qc1 {[%clk 0:00:08]} 37. Rxd2 {[%clk 0:00:15]}  Qxd2 {[%clk 0:00:09]} 38. Qe2 {[%clk 0:00:15]}  Qc3 {[%clk 0:00:08]} 39. Kg2 {[%clk 0:00:14]}  Qxa3 {[%clk 0:00:08]} 40. h4 {[%clk 0:00:14]}  Qc3 {[%clk 0:00:08]} 41. h5 {[%clk 0:00:14]}  gxh5 {[%clk 0:00:08]} 42. Qxh5 {[%clk 0:00:14]}  Qd2 {[%clk 0:00:09]} 43. Qg4+ {[%clk 0:00:14]}  Kf8 {[%clk 0:00:09]} 44. Qe2 {[%clk 0:00:13]}  Qxe2 {[%clk 0:00:08]} 45. Bxe2 {[%clk 0:00:13]}  Ke7 {[%clk 0:00:09]} 46. f4 {[%clk 0:00:13]}  f5 {[%clk 0:00:09]} 47. Kf3 {[%clk 0:00:13]}  Kf6 {[%clk 0:00:09]} 48. Bd3 {[%clk 0:00:12]}  Bc3 {[%clk 0:00:10]} 49. Kg2 {[%clk 0:00:11]}  Bd2 {[%clk 0:00:10]} 50. Kh3 {[%clk 0:00:11]}  Be1 {[%clk 0:00:10]} 51. g4 {[%clk 0:00:11]}  fxg4+ {[%clk 0:00:10]} 52. Kxg4 {[%clk 0:00:12]}  Bd2 {[%clk 0:00:11]} 53. Kf3 {[%clk 0:00:12]}  Bc3 {[%clk 0:00:11]} 54. Ke4 {[%clk 0:00:13]}  Ba5 {[%clk 0:00:10]} 55. Kd5 {[%clk 0:00:13]}  Bb6 {[%clk 0:00:11]} 56. Be4 {[%clk 0:00:12]}  Bc7 {[%clk 0:00:09]} 57. Kxc5 {[%clk 0:00:10]}  Bxf4 {[%clk 0:00:09]} 58. Kc6 {[%clk 0:00:10]}  Be3 {[%clk 0:00:10]} 59. c5 {[%clk 0:00:07]}  Ke7 {[%clk 0:00:10]} 60. Bf5 {[%clk 0:00:06]}  Kd8 {[%clk 0:00:11]} 61. Kd6 {[%clk 0:00:06]}  Bf4+ {[%clk 0:00:10]} 62. Kc6 {[%clk 0:00:06]}  Be3 {[%clk 0:00:11]} 63. Kd5 {[%clk 0:00:06]}  Kc7 {[%clk 0:00:11]} 64. Be4 {[%clk 0:00:06]}  Bf2 {[%clk 0:00:11]} 65. Kc4 {[%clk 0:00:06]}  Bg1 {[%clk 0:00:12]} 66. Kb4 {[%clk 0:00:07]}  Bf2 {[%clk 0:00:12]} 67. Kc4 {[%clk 0:00:07]}  Bg1 {[%clk 0:00:12]} 68. Kd5 {[%clk 0:00:07]}  Bf2 {[%clk 0:00:13]} 69. c6 {[%clk 0:00:08]}  Bg1 {[%clk 0:00:13]} 70. Kc4 {[%clk 0:00:09]}  Bb6 {[%clk 0:00:14]} 71. Kd5 {[%clk 0:00:09]}  Bf2 {[%clk 0:00:14]} 72. Ke6 {[%clk 0:00:10]}  Bb6 {[%clk 0:00:15]} 73. Bd5 {[%clk 0:00:10]}  Bg1 {[%clk 0:00:16]} 74. Kf5 {[%clk 0:00:10]}  Bb6 {[%clk 0:00:17]} 75. Ke4 {[%clk 0:00:11]}  Bg1 {[%clk 0:00:18]} 76. Kf3 {[%clk 0:00:12]}  Bb6 {[%clk 0:00:19]} 77. Kg2 {[%clk 0:00:12]}  Ba5 {[%clk 0:00:20]} 78. Kf1 {[%clk 0:00:12]}  Bb6 {[%clk 0:00:21]} 79. Ke2 {[%clk 0:00:13]}  Ba5 {[%clk 0:00:22]} 80. Kd3 {[%clk 0:00:14]}  Bb6 {[%clk 0:00:23]} 81. Kc4 {[%clk 0:00:14]}  Bg1 {[%clk 0:00:23]} 82. Kb3 {[%clk 0:00:14]}  Bb6 {[%clk 0:00:24]} 83. Ka4 {[%clk 0:00:15]}  Bg1 {[%clk 0:00:25]} 84. Ka5 {[%clk 0:00:13]}  Bb6+ {[%clk 0:00:26]} 85. Ka6 {[%clk 0:00:14]}  Bg1 {[%clk 0:00:27]} 86. Bg2 {[%clk 0:00:13]}  Bb6 {[%clk 0:00:28]} 87. Bf1 {[%clk 0:00:14]}  Bg1 {[%clk 0:00:29]} 88. Bc4 {[%clk 0:00:14]}  Bb6 {[%clk 0:00:29]} 89. Ba2 {[%clk 0:00:14]}  Bc5 {[%clk 0:00:30]} 90. Bb1 {[%clk 0:00:14]}  Bb6 {[%clk 0:00:31]} 91. Bc2 {[%clk 0:00:14]}  Bc5 {[%clk 0:00:31]} 92. Ka5 {[%clk 0:00:14]}  Bb6+ {[%clk 0:00:32]} 93. Kb4 {[%clk 0:00:15]}  Be3 {[%clk 0:00:33]} 94. Kc4 {[%clk 0:00:15]}  Bb6 {[%clk 0:00:34]} 95. Kd5 {[%clk 0:00:15]}  Bg1 {[%clk 0:00:35]} 96. Kc4 {[%clk 0:00:13]}  Bb6 {[%clk 0:00:36]} 97. Bd3 {[%clk 0:00:14]}  Bg1 {[%clk 0:00:36]} 98. Kd5 {[%clk 0:00:14]}  Bb6 {[%clk 0:00:37]} 99. Ke4 {[%clk 0:00:15]}  Ba5 {[%clk 0:00:37]} 100. Be2 {[%clk 0:00:16]}  Bb6 {[%clk 0:00:38]} 101. Kd3 {[%clk 0:00:16]}  Ba5 {[%clk 0:00:39]} 102. Kc4 {[%clk 0:00:17]}  Bb6 {[%clk 0:00:40]} 103. Kb3 {[%clk 0:00:16]}  Bg1 {[%clk 0:00:41]} 104. Ka4 {[%clk 0:00:17]}  Bb6 {[%clk 0:00:42]} 105. Kb4 {[%clk 0:00:17]}  Bf2 {[%clk 0:00:42]} 106. Kc4 {[%clk 0:00:17]}  Bb6 {[%clk 0:00:43]} 107. Bf1 {[%clk 0:00:16]}  Bg1 {[%clk 0:00:44]} 108. Bh3 {[%clk 0:00:17]}  Bb6 {[%clk 0:00:45]} 109. Bd7 {[%clk 0:00:18]}  Bg1 {[%clk 0:00:45]} 110. Kd3 {[%clk 0:00:18]}  Bb6 {[%clk 0:00:46]} 111. Kc2 {[%clk 0:00:19]}  Bg1 {[%clk 0:00:46]} 112. Kb3 {[%clk 0:00:20]}  Bf2 {[%clk 0:00:47]} 113. Ka4 {[%clk 0:00:20]}  Bb6 {[%clk 0:00:48]} 114. Kb4 {[%clk 0:00:20]}  Bg1 {[%clk 0:00:49]} 115. Ka5 {[%clk 0:00:21]}  Bb6+ {[%clk 0:00:50]} 116. Ka6 {[%clk 0:00:21]}  Bg1 {[%clk 0:00:51]} 117. Ka5 {[%clk 0:00:18]}  Bb6+ {[%clk 0:00:52]} 118. Ka4 {[%clk 0:00:18]}  Bg1 {[%clk 0:00:52]} 119. Kb4 {[%clk 0:00:19]} 1/2-1/2


[Site "https://www.chess.com"]

[Event "Titled Tuesday Blitz January 31 Late 2023"]
[White "Viana Da Costa, Fernando"]
[Black "Averjanov, Alexey"]
[WhiteFideId "2111900"]
[BlackFideId "14109867"]
[WhiteElo "2228"]
[BlackElo "2399"]
[Result "0-1"]
[Round "05"]
[TimeControl "180+2"]
[Date "2023.01.31"]
[WhiteClock "0:02:14"]
[BlackClock "0:02:49"]

1. e4 {[%clk 0:02:43]}  c6 {[%clk 0:02:59]} 2. Nc3 {[%clk 0:02:41]}  d5 {[%clk 0:03:00]} 3. Nf3 {[%clk 0:02:41]}  Bg4 {[%clk 0:03:00]} 4. h3 {[%clk 0:02:40]}  Bxf3 {[%clk 0:03:01]} 5. Qxf3 {[%clk 0:02:40]}  e6 {[%clk 0:03:01]} 6. d4 {[%clk 0:02:38]}  dxe4 {[%clk 0:03:02]} 7. Qxe4 {[%clk 0:02:36]}  Nf6 {[%clk 0:03:01]} 8. Qd3 {[%clk 0:02:36]}  Nbd7 {[%clk 0:03:01]} 9. Bg5 {[%clk 0:02:34]}  Be7 {[%clk 0:03:00]} 10. O-O-O {[%clk 0:02:34]}  Nd5 {[%clk 0:03:00]} 11. Bd2 {[%clk 0:02:30]}  Nxc3 {[%clk 0:02:59]} 12. Bxc3 {[%clk 0:02:30]}  Nf6 {[%clk 0:02:59]} 13. Kb1 {[%clk 0:02:30]}  Nd5 {[%clk 0:02:58]} 14. Bd2 {[%clk 0:02:30]}  O-O {[%clk 0:02:58]} 15. c4 {[%clk 0:02:30]}  Nf6 {[%clk 0:02:58]} 16. Bc3 {[%clk 0:02:29]}  b5 {[%clk 0:02:57]} 17. cxb5 {[%clk 0:02:28]}  cxb5 {[%clk 0:02:58]} 18. Qxb5 {[%clk 0:02:27]}  Rb8 {[%clk 0:02:57]} 19. Qd3 {[%clk 0:02:21]}  Nd5 {[%clk 0:02:57]} 20. Be2 {[%clk 0:02:20]}  Qb6 {[%clk 0:02:54]} 21. Bf3 {[%clk 0:02:19]}  Nxc3+ {[%clk 0:02:51]} 22. Qxc3 {[%clk 0:02:19]}  Rfc8 {[%clk 0:02:50]} 23. Qd2 {[%clk 0:02:14]}  Bf6 {[%clk 0:02:49]} 0-1


[Site "https://www.chess.com"]

[Event "Titled Tuesday Blitz January 31 Late 2023"]
[White "Bambino Filho, Antonio Carlos"]
[Black "Cardoso Cardoso, Jose Gabriel"]
[WhiteFideId "2113163"]
[BlackFideId "4430492"]
[WhiteElo "2144"]
[BlackElo "2492"]
[Result "0-1"]
[Round "05"]
[TimeControl "180+2"]
[Date "2023.01.31"]
[WhiteClock "0:00:03"]
[BlackClock "0:00:05"]

1. d4 {[%clk 0:03:00]}  d6 {[%clk 0:02:56]} 2. e4 {[%clk 0:02:56]}  c6 {[%clk 0:02:35]} 3. Nc3 {[%clk 0:02:56]}  e5 {[%clk 0:02:28]} 4. Nf3 {[%clk 0:02:54]}  Qc7 {[%clk 0:02:25]} 5. Be2 {[%clk 0:02:54]}  Be7 {[%clk 0:02:24]} 6. O-O {[%clk 0:02:55]}  Nf6 {[%clk 0:02:24]} 7. h3 {[%clk 0:02:55]}  O-O {[%clk 0:02:24]} 8. Re1 {[%clk 0:02:56]}  Nbd7 {[%clk 0:02:15]} 9. a4 {[%clk 0:02:55]}  Re8 {[%clk 0:02:15]} 10. Bc4 {[%clk 0:02:43]}  h6 {[%clk 0:02:02]} 11. a5 {[%clk 0:02:33]}  Nf8 {[%clk 0:02:00]} 12. Bb3 {[%clk 0:02:25]}  Ng6 {[%clk 0:01:56]} 13. d5 {[%clk 0:02:19]}  a6 {[%clk 0:01:44]} 14. Be3 {[%clk 0:02:09]}  Bf8 {[%clk 0:01:37]} 15. Na4 {[%clk 0:02:04]}  Bd7 {[%clk 0:01:23]} 16. Nb6 {[%clk 0:02:01]}  Rad8 {[%clk 0:01:21]} 17. dxc6 {[%clk 0:01:45]}  Bxc6 {[%clk 0:01:18]} 18. Nd5 {[%clk 0:01:33]}  Bxd5 {[%clk 0:01:00]} 19. Bxd5 {[%clk 0:01:34]}  Rc8 {[%clk 0:01:00]} 20. c3 {[%clk 0:01:26]}  Nxd5 {[%clk 0:00:57]} 21. Qxd5 {[%clk 0:01:24]}  Qc6 {[%clk 0:00:57]} 22. Red1 {[%clk 0:01:15]}  Qxd5 {[%clk 0:00:56]} 23. Rxd5 {[%clk 0:01:13]}  Rc6 {[%clk 0:00:54]} 24. Ra3 {[%clk 0:00:54]}  Rec8 {[%clk 0:00:46]} 25. Rb3 {[%clk 0:00:54]}  R8c7 {[%clk 0:00:46]} 26. Bb6 {[%clk 0:00:54]}  Rd7 {[%clk 0:00:43]} 27. g3 {[%clk 0:00:53]}  f6 {[%clk 0:00:43]} 28. h4 {[%clk 0:00:52]}  Ne7 {[%clk 0:00:42]} 29. Rd1 {[%clk 0:00:51]}  Nc8 {[%clk 0:00:36]} 30. Be3 {[%clk 0:00:49]}  Kf7 {[%clk 0:00:35]} 31. Kf1 {[%clk 0:00:41]}  Ke6 {[%clk 0:00:34]} 32. Ke2 {[%clk 0:00:41]}  Ne7 {[%clk 0:00:34]} 33. h5 {[%clk 0:00:37]}  d5 {[%clk 0:00:34]} 34. exd5+ {[%clk 0:00:29]}  Nxd5 {[%clk 0:00:35]} 35. Nh4 {[%clk 0:00:29]}  Bc5 {[%clk 0:00:23]} 36. g4 {[%clk 0:00:26]}  Bxe3 {[%clk 0:00:20]} 37. fxe3 {[%clk 0:00:27]}  Rc4 {[%clk 0:00:19]} 38. Kf3 {[%clk 0:00:22]}  e4+ {[%clk 0:00:15]} 39. Kf2 {[%clk 0:00:22]}  Nxe3 {[%clk 0:00:04]} 40. Rxd7 {[%clk 0:00:20]}  Nxg4+ {[%clk 0:00:05]} 41. Kg3 {[%clk 0:00:19]}  Kxd7 {[%clk 0:00:06]} 42. Kxg4 {[%clk 0:00:19]}  e3+ {[%clk 0:00:06]} 43. Kg3 {[%clk 0:00:18]}  Rxh4 {[%clk 0:00:04]} 44. Rxb7+ {[%clk 0:00:14]}  Ke6 {[%clk 0:00:03]} 45. Rb6+ {[%clk 0:00:13]}  Kf5 {[%clk 0:00:03]} 46. Kf3 {[%clk 0:00:08]}  Rh3+ {[%clk 0:00:02]} 47. Ke2 {[%clk 0:00:09]}  Kf4 {[%clk 0:00:02]} 48. Re6 {[%clk 0:00:03]}  Rh2+ {[%clk 0:00:02]} 49. Kd3 {[%clk 0:00:04]}  Rd2+ {[%clk 0:00:03]} 50. Kc4 {[%clk 0:00:04]}  Rxb2 {[%clk 0:00:04]} 51. Rxa6 {[%clk 0:00:02]}  e2 {[%clk 0:00:04]} 52. Re6 {[%clk 0:00:03]}  Kf3 {[%clk 0:00:04]} 53. a6 {[%clk 0:00:03]}  Ra2 {[%clk 0:00:05]} 54. Kb5 {[%clk 0:00:03]}  Ra1 {[%clk 0:00:05]} 0-1


[Site "https://www.chess.com"]

[Event "Titled Tuesday Blitz January 31 Late 2023"]
[White "Bon, Michael"]
[Black "Suder, Jakub"]
[WhiteFideId "620696"]
[BlackFideId "1195310"]
[WhiteElo "2394"]
[BlackElo "2244"]
[Result "0-1"]
[Round "05"]
[TimeControl "180+2"]
[Date "2023.01.31"]
[WhiteClock "0:00:02"]
[BlackClock "0:00:55"]

1. e4 {[%clk 0:02:58]}  c5 {[%clk 0:03:00]} 2. Nf3 {[%clk 0:02:56]}  e6 {[%clk 0:03:00]} 3. d4 {[%clk 0:02:57]}  cxd4 {[%clk 0:03:00]} 4. Nxd4 {[%clk 0:02:58]}  Nc6 {[%clk 0:03:00]} 5. Nc3 {[%clk 0:02:58]}  Nf6 {[%clk 0:03:01]} 6. Ndb5 {[%clk 0:02:58]}  d6 {[%clk 0:03:01]} 7. Bf4 {[%clk 0:02:58]}  e5 {[%clk 0:03:01]} 8. Bg5 {[%clk 0:02:58]}  a6 {[%clk 0:03:01]} 9. Na3 {[%clk 0:02:59]}  Be6 {[%clk 0:03:01]} 10. Nc4 {[%clk 0:02:58]}  Rb8 {[%clk 0:03:01]} 11. Nd5 {[%clk 0:02:49]}  Bxd5 {[%clk 0:02:53]} 12. Bxf6 {[%clk 0:02:47]}  Qxf6 {[%clk 0:02:53]} 13. Qxd5 {[%clk 0:02:48]}  Nb4 {[%clk 0:02:49]} 14. Qd2 {[%clk 0:02:45]}  d5 {[%clk 0:02:48]} 15. exd5 {[%clk 0:02:41]}  Rd8 {[%clk 0:02:47]} 16. Ne3 {[%clk 0:02:14]}  Bc5 {[%clk 0:02:47]} 17. c4 {[%clk 0:01:04]}  Qg6 {[%clk 0:02:44]} 18. a3 {[%clk 0:00:34]}  Bxe3 {[%clk 0:02:41]} 19. Qxb4 {[%clk 0:00:34]}  Bf4 {[%clk 0:02:39]} 20. Qc3 {[%clk 0:00:28]}  Qe4+ {[%clk 0:02:33]} 21. Be2 {[%clk 0:00:20]}  Qxg2 {[%clk 0:02:25]} 22. Bf3 {[%clk 0:00:18]}  Qg6 {[%clk 0:02:18]} 23. Qb4 {[%clk 0:00:13]}  Qd3 {[%clk 0:02:11]} 24. Be2 {[%clk 0:00:12]}  Qg6 {[%clk 0:02:04]} 25. Kf1 {[%clk 0:00:09]}  b5 {[%clk 0:01:48]} 26. h4 {[%clk 0:00:08]}  bxc4 {[%clk 0:01:47]} 27. Qa4+ {[%clk 0:00:08]}  Ke7 {[%clk 0:01:43]} 28. Qxc4 {[%clk 0:00:07]}  Qd6 {[%clk 0:01:13]} 29. Rg1 {[%clk 0:00:06]}  g6 {[%clk 0:01:08]} 30. Rd1 {[%clk 0:00:06]}  Rb8 {[%clk 0:01:06]} 31. b4 {[%clk 0:00:06]}  Rb6 {[%clk 0:01:03]} 32. Bf3 {[%clk 0:00:03]}  Rbb8 {[%clk 0:01:02]} 33. Kg2 {[%clk 0:00:03]}  Rhc8 {[%clk 0:01:02]} 34. Qd3 {[%clk 0:00:02]}  h5 {[%clk 0:01:01]} 35. Rge1 {[%clk 0:00:02]}  Kf8 {[%clk 0:01:00]} 36. Qb3 {[%clk 0:00:02]}  Kg8 {[%clk 0:00:58]} 37. Qa4 {[%clk 0:00:02]}  Qf6 {[%clk 0:00:58]} 38. d6 {[%clk 0:00:01]}  Qxh4 {[%clk 0:00:58]} 39. Rh1 {[%clk 0:00:01]}  Qg5+ {[%clk 0:00:57]} 40. Kf1 {[%clk 0:00:02]}  Rc3 {[%clk 0:00:55]} 0-1


[Site "https://www.chess.com"]